lending/lending_fUSD_20251218
["ID","MTS","AMOUNT","RATE_DAILY","PERIOD"]
[399060202,1766091036588,-500.0,0.00016382,2]
[399060203,1766091036598,-500.0,0.00016382,2]
[399060204,1766091036607,-558.13798694,0.00016382,2]
[399060205,1766091036617,-500.0,0.00016382,2]
[399060206,1766091036626,-500.0,0.00016382,2]
[399060207,1766091036635,-500.0,0.00016382,2]
[399060208,1766091036645,-500.0,0.00016382,2]
[399060209,1766091036654,-500.0,0.00016382,2]
[399060210,1766091036664,-500.0,0.00016382,2]
[399060211,1766091036676,-500.0,0.00016382,2]
[399060212,1766091036691,-500.0,0.00016382,2]
[399060214,1766091036701,-500.0,0.00016382,2]
[399060216,1766091036710,-500.0,0.00016382,2]
[399060218,1766091036720,-1572.54089739,0.00016382,2]
[399060220,1766091036729,-1572.54089739,0.00016382,2]
[399060222,1766091036739,-1572.54089739,0.00016382,2]
[399060225,1766091036749,-1572.54089739,0.00016382,2]
[399060227,1766091036760,-1572.54089739,0.00016382,2]
[399060229,1766091036769,-1572.54089739,0.00016382,2]
[399060232,1766091036779,-1572.54089739,0.00016382,2]
[399060237,1766091036789,-1572.54089739,0.00016382,2]
[399060243,1766091036804,-1572.54089739,0.00016382,2]
[399060248,1766091036814,-1572.54089739,0.00016382,2]
[399060252,1766091036823,-1572.54089739,0.00016382,2]
[399060256,1766091036833,-1572.54089739,0.00016382,2]
[399060260,1766091036842,-1572.54089739,0.00016382,2]
[399060263,1766091036851,-1572.54089739,0.00016382,2]
[399060266,1766091036861,-1572.54089739,0.00016382,2]
[399060269,1766091036870,-1572.54089739,0.00016382,2]
[399060272,1766091036880,-1572.54089739,0.00016382,2]
[399060275,1766091036889,-1572.54089739,0.00016382,2]
[399060277,1766091036899,-1572.54089739,0.00016382,2]
[399060279,1766091036909,-1572.54089739,0.00016382,2]
[399060283,1766091036936,-1572.54089739,0.00016382,2]
[399060285,1766091036946,-1572.54089739,0.00016382,2]
[399060287,1766091036956,-1572.54089739,0.00016382,2]
[399060289,1766091036966,-1572.54089739,0.00016382,2]
[399060291,1766091036975,-1572.54089739,0.00016382,2]
[399060294,1766091036985,-1572.54089739,0.00016382,2]
[399060296,1766091036995,-1572.54089739,0.00016382,2]
[399060298,1766091037004,-1572.54089739,0.00016382,2]
[399060300,1766091037014,-1572.54089739,0.00016382,2]
[399060302,1766091037023,-1572.54089739,0.00016382,2]
[399060304,1766091037032,-1572.54089739,0.00016382,2]
[399060306,1766091037042,-1572.54089739,0.00016382,2]
[399060308,1766091037051,-1572.54089739,0.00016382,2]
[399060310,1766091037060,-1572.54089739,0.00016382,2]
[399060312,1766091037069,-1572.54089739,0.00016382,2]
[399060314,1766091037079,-1572.54089739,0.00016382,2]
[399060316,1766091037089,-1572.54089739,0.00016382,2]
[399060317,1766091037098,-1572.54089739,0.00016382,2]
[399060319,1766091037107,-1572.54089739,0.00016382,2]
[399060321,1766091037117,-1572.54089739,0.00016382,2]
[399060323,1766091037126,-1357.87658442,0.00016382,2]
[399060324,1766091037135,-1357.87658442,0.00016382,2]
[399060325,1766091037144,-1357.87658442,0.00016382,2]
[399060326,1766091037157,-1357.87658442,0.00016382,2]
[399060327,1766091037167,-1357.87658442,0.00016382,2]
[399060328,1766091037177,-1357.87658442,0.00016382,2]
[399060329,1766091037186,-1357.87658442,0.00016382,2]
[399060330,1766091037195,-1357.87658442,0.00016382,2]
[399060331,1766091037204,-1357.87658442,0.00016382,2]
[399060332,1766091037214,-1357.87658442,0.00016382,2]
[399060333,1766091037223,-1357.87658442,0.00016382,2]
[399060334,1766091037232,-1357.87658442,0.00016382,2]
[399060335,1766091037241,-1357.87658442,0.00016382,2]
[399060336,1766091037250,-1357.87658442,0.00016382,2]
[399060337,1766091037259,-1357.87658442,0.00016382,2]
[399060338,1766091037269,-1357.87658442,0.00016382,2]
[399060339,1766091037278,-1357.87658442,0.00016382,2]
[399060340,1766091037289,-1357.87658442,0.00016382,2]
[399060341,1766091037298,-1357.87658442,0.00016382,2]
[399060342,1766091037307,-1357.87658442,0.00016382,2]
[399060343,1766091037318,-1357.87658442,0.00016382,2]
[399060344,1766091037327,-500.00000009,0.00016382,2]
[399060345,1766091037337,-500.0,0.00016382,2]
[399060346,1766091037353,-500.0,0.00016382,2]
[399060347,1766091037363,-500.0,0.00016382,2]
[399060348,1766091037372,-500.0,0.00016382,2]
[399060349,1766091037382,-500.0,0.00016382,2]
[399060350,1766091037393,-500.0,0.00016382,2]
[399060351,1766091037403,-500.0,0.00016382,2]
[399060352,1766091037413,-431.97770369,0.00016382,2]
[399060353,1766091037422,-500.0,0.00016382,2]
[399060354,1766091037432,-500.0,0.00016382,2]
[399060355,1766091037441,-235.15594298,0.00016382,2]
[399060356,1766091037450,-500.0,0.00016382,2]
[399060357,1766091037459,-500.0,0.00016382,2]
[399060358,1766091037469,-151.56385368,0.00016382,2]
[399060359,1766091037478,-500.0,0.00016382,2]
[399060360,1766091037488,-500.0,0.00016382,2]
[399060361,1766091037497,-500.0,0.00016382,2]
[399060362,1766091037507,-3750.71464431,0.00016383,2]
[399060363,1766091037520,-6629.85417364,0.00016383,2]
[399060364,1766091037531,-47803.76618421,0.00016383,2]
[399060365,1766091037542,-109692.33811064,0.00016383,2]
[399060366,1766091037583,-11270.1521036,0.00016383,2]
[399060367,1766091037595,-908.31160856,0.00016383,2]
[399060368,1766091037658,-1392.50603388,0.00016383,2]
[399060369,1766091037691,-672.07029798,0.00016383,2]
[399060370,1766091037716,-412.77728069,0.00016383,2]
[399060371,1766091037730,-36882.7162449,0.00016383,2]
[399060372,1766091037741,-3729.7937551,0.00016383,2]
[399060373,1766091037755,-705.89360131,0.00016383,2]
[399060376,1766091038106,-294.3711004,0.00016383,2]
[399060377,1766091038148,-660685.45254336,0.00016383,2]
[399060378,1766091038158,-228.0,0.000164,2]
[399060379,1766091038168,-319.0,0.000164,2]
[399060380,1766091038178,-182.0,0.000164,2]
[399060381,1766091038188,-183.24724678,0.000164,2]
[399060382,1766091038198,-5243.99666047,0.00016433,2]
[399060383,1766091038208,-2913.16986264,0.00016433,2]
[399060384,1766091038218,-500.0,0.00016438,2]
[399060385,1766091038228,-500.0,0.00016438,2]
[399060386,1766091038238,-500.0,0.00016438,2]
[399060387,1766091038247,-500.0,0.00016438,2]
[399060388,1766091038257,-500.0,0.00016438,2]
[399060389,1766091038267,-500.0,0.00016438,2]
[399060390,1766091038277,-500.0,0.00016438,2]
[399060391,1766091038287,-528.14997908,0.00016438,2]
[399060392,1766091038297,-500.0,0.00016438,2]
[399060394,1766091038307,-500.0,0.00016438,2]
[399060395,1766091038316,-500.0,0.00016438,2]
[399060396,1766091038326,-500.0,0.00016438,2]
[399060397,1766091038335,-500.0,0.00016438,2]
[399060398,1766091038345,-500.0,0.00016438,2]
[399060399,1766091038354,-500.0,0.00016438,2]
[399060401,1766091038364,-500.0,0.00016438,2]
[399060402,1766091038374,-500.0,0.00016438,2]
[399060403,1766091038384,-500.0,0.00016438,2]
[399060404,1766091038394,-500.0,0.00016438,2]
[399060405,1766091038404,-500.0,0.00016438,2]
[399060406,1766091038414,-500.0,0.00016438,2]
[399060408,1766091038424,-2695.19614591,0.00016438,2]
[399060410,1766091038434,-2695.19614591,0.00016438,2]
[399060411,1766091038444,-2695.19614591,0.00016438,2]
[399060412,1766091038454,-2695.19614591,0.00016438,2]
[399060413,1766091038464,-2695.19614591,0.00016438,2]
[399060415,1766091038473,-2695.19614591,0.00016438,2]
[399060416,1766091038483,-2695.19614591,0.00016438,2]
[399060417,1766091038493,-2695.19614591,0.00016438,2]
[399060418,1766091038505,-2695.19614591,0.00016438,2]
[399060419,1766091038515,-2695.19614591,0.00016438,2]
[399060420,1766091038526,-2695.19614591,0.00016438,2]
[399060421,1766091038536,-2695.19614591,0.00016438,2]
[399060422,1766091038546,-2695.19614591,0.00016438,2]
[399060423,1766091038556,-2695.19614591,0.00016438,2]
[399060424,1766091038566,-2695.19614591,0.00016438,2]
[399060425,1766091038576,-2695.19614591,0.00016438,2]
[399060426,1766091038587,-2695.19614591,0.00016438,2]
[399060427,1766091038597,-2695.19614591,0.00016438,2]
[399060428,1766091038607,-2695.19614591,0.00016438,2]
[399060429,1766091038617,-2695.19614591,0.00016438,2]
[399060430,1766091038628,-2695.19614591,0.00016438,2]
[399060431,1766091038638,-2695.19614591,0.00016438,2]
[399060432,1766091038648,-2695.19614591,0.00016438,2]
[399060433,1766091038659,-2695.19614591,0.00016438,2]
[399060434,1766091038669,-2695.19614591,0.00016438,2]
[399060435,1766091038681,-2695.19614591,0.00016438,2]
[399060436,1766091038691,-2695.19614591,0.00016438,2]
[399060437,1766091038701,-2695.19614591,0.00016438,2]
[399060438,1766091038711,-2695.19614591,0.00016438,2]
[399060439,1766091038722,-2695.19614591,0.00016438,2]
[399060440,1766091038731,-2695.19614591,0.00016438,2]
[399060441,1766091038740,-2695.19614591,0.00016438,2]
[399060442,1766091038751,-2695.19614591,0.00016438,2]
[399060443,1766091038762,-2695.19614591,0.00016438,2]
[399060444,1766091038772,-2695.19614591,0.00016438,2]
[399060445,1766091038782,-2695.19614591,0.00016438,2]
[399060446,1766091038792,-2695.19614591,0.00016438,2]
[399060447,1766091038802,-2695.19614591,0.00016438,2]
[399060448,1766091038812,-2695.19614591,0.00016438,2]
[399060449,1766091038822,-2695.19614591,0.00016438,2]
[399060450,1766091038832,-2695.19614591,0.00016438,2]
[399060451,1766091038842,-2695.19614591,0.00016438,2]
[399060452,1766091038853,-2695.19614591,0.00016438,2]
[399060453,1766091038863,-2695.19614591,0.00016438,2]
[399060454,1766091038873,-2695.19614591,0.00016438,2]
[399060455,1766091038883,-2695.19614591,0.00016438,2]
[399060456,1766091038893,-2695.19614591,0.00016438,2]
[399060457,1766091038903,-2695.19614591,0.00016438,2]
[399060458,1766091038913,-2695.19614591,0.00016438,2]
[399060459,1766091038923,-2695.19614591,0.00016438,2]
[399060460,1766091038933,-2695.19614591,0.00016438,2]
[399060461,1766091038943,-2695.19614591,0.00016438,2]
[399060462,1766091038953,-2695.19614591,0.00016438,2]
[399060463,1766091038964,-2695.19614591,0.00016438,2]
[399060464,1766091038973,-2695.19614591,0.00016438,2]
[399060465,1766091038984,-2695.19614591,0.00016438,2]
[399060466,1766091038994,-2695.19614591,0.00016438,2]
[399060467,1766091039004,-2646.19257963,0.00016438,2]
[399060468,1766091039013,-2646.19257963,0.00016438,2]
[399060469,1766091039023,-2646.19257963,0.00016438,2]
[399060470,1766091039034,-2646.19257963,0.00016438,2]
[399060471,1766091039044,-2646.19257963,0.00016438,2]
[399060472,1766091039054,-2646.19257963,0.00016438,2]
[399060473,1766091039065,-2646.19257963,0.00016438,2]
[399060474,1766091039075,-2646.19257963,0.00016438,2]
[399060475,1766091039085,-2646.19257963,0.00016438,2]
[399060476,1766091039095,-2646.19257963,0.00016438,2]
[399060477,1766091039106,-2646.19257963,0.00016438,2]
[399060478,1766091039116,-800.0,0.00016438,2]
[399060479,1766091039126,-500.0,0.00016482,2]
[399060480,1766091039137,-500.0,0.00016482,2]
[399060481,1766091039147,-500.0,0.00016482,2]
[399060482,1766091039157,-500.0,0.00016482,2]
[399060483,1766091039167,-200.0,0.00016482,2]
[399060484,1766091039177,-500.0,0.00016482,2]
[399060485,1766091039187,-500.0,0.00016482,2]
[399060486,1766091039197,-500.0,0.00016482,2]
[399060487,1766091039206,-500.0,0.00016482,2]
[399060488,1766091039216,-500.0,0.00016482,2]
[399060489,1766091039226,-62925.58776058,0.00016499,2]
[399060490,1766091039236,-5243.99666047,0.000165,2]
[399060491,1766091039246,-2913.16986264,0.000165,2]
[399060492,1766091039256,-159.0,0.00016544,2]
[399060493,1766091039267,-5243.99666047,0.00016567,2]
[399060494,1766091039276,-2913.16986264,0.00016567,2]
[399060495,1766091039286,-235.0,0.00016577,2]
[399060496,1766091039296,-1884.0,0.00016588,2]
[399060497,1766091039307,-9999.99,0.00016588,2]
[399060498,1766091039317,-299.99,0.00016588,4]
[399060499,1766091039327,-2556.68,0.00016588,2]
[399060500,1766091039336,-209.0,0.0001661,2]
[399060501,1766091039346,-406.0,0.00016621,2]
[399060502,1766091039356,-5243.99666047,0.00016633,2]
[399060503,1766091039366,-2913.16986264,0.00016633,2]
[399060504,1766091039376,-419.0,0.00016643,2]
[399060505,1766091039385,-200.0,0.00016647,2]
[399060506,1766091039395,-692.0,0.00016654,2]
[399060507,1766091039405,-400.48159053,0.00016656,2]
[399060508,1766091039415,-1103.78,0.00016656,2]
[399060509,1766091039426,-1493.79359145,0.0001666,2]
[399060510,1766091039435,-394.0,0.00016676,2]
[399060511,1766091039445,-1543.0,0.00016687,2]
[399060512,1766091039454,-5243.99666047,0.000167,2]
[399060513,1766091039465,-2913.16986264,0.000167,2]
[399060514,1766091039474,-309.0,0.00016707,2]
[399060515,1766091039484,-166.21,0.00016712,2]
[399060516,1766091039493,-1378.0,0.00016721,2]
[399060517,1766091039503,-326.0,0.00016741,2]
[399060518,1766091039513,-1791.0,0.00016754,2]
[399060519,1766091039523,-1408.0,0.00016762,2]
[399060520,1766091039533,-5243.99666047,0.00016767,2]
[399060521,1766091039543,-2913.16986264,0.00016767,2]
[399060522,1766091039552,-401.0,0.00016787,2]
[399060523,1766091039562,-546.0,0.00016796,2]
[399060524,1766091039572,-1255.0,0.0001682,2]
[399060525,1766091039583,-341.0,0.00016829,2]
[399060526,1766091039593,-5243.99666047,0.00016833,2]
[399060527,1766091039603,-2913.16986264,0.00016833,2]
[399060528,1766091039613,-203.77230882,0.00016861,2]
[399060529,1766091039623,-200.0,0.00016863,2]
[399060530,1766091039634,-200.0,0.00016864,2]
[399060531,1766091039644,-200.0,0.00016864,2]
[399060532,1766091039654,-5243.99666047,0.000169,2]
[399060533,1766091039664,-2913.16986264,0.000169,2]
[399060534,1766091039678,-3818.0,0.000169,2]
[399060535,1766091039691,-1103.78,0.0001693,2]
[399060536,1766091039703,-282.25650796,0.00016986,2]
[399060537,1766091039715,-500.0,0.00016986,2]
[399060538,1766091039725,-11969.5326307,0.00016998,2]
[399060539,1766091039735,-300.0,0.00016999,2]
[399060540,1766091039746,-300.0,0.00016999,2]
[399060541,1766091039758,-666.0,0.00016999,2]
[399060542,1766091039768,-300.0,0.00016999,2]
[399060543,1766091039779,-666.0,0.00016999,2]
[399060544,1766091039789,-500.0,0.00016999,2]
[399060545,1766091039800,-1425533.72279334,0.00017,2]
[399060556,1766091042393,-21386.26349676,0.00017,2]
[399060557,1766091042436,-8264.822704,0.00017,2]
[399060558,1766091042445,-15664.34035465,0.00017,2]
[399060559,1766091042456,-3349.6,0.00017,2]
[399060560,1766091042467,-1370.716068,0.00017,2]
[399060561,1766091042478,-829.57102,0.00017,2]
[399060570,1766091043741,-1.7e-07,0.00017,2]
[399060571,1766091043786,-9347.2832205,0.00017,2]
[399060572,1766091044090,-66657.64910273,0.00017,2]
[399060573,1766091044102,-25186.3396482,0.00017,2]
[399060574,1766091044113,-416.27920025,0.00017,2]
[399060580,1766091047656,-153.56,0.00017,2]
[399060587,1766091144457,10000.01,0.00016282,2]
[399060588,1766091144484,10000.01,0.00016282,2]
[399060589,1766091144510,10000.01,0.00016282,2]
[399060590,1766091144539,10000.01,0.00016282,2]
[399060591,1766091144565,10000.01,0.00016282,2]
[399060592,1766091144590,10000.01,0.00016282,2]
[399060593,1766091144615,10000.01,0.00016282,2]
[399060594,1766091144640,10000.01,0.00016282,2]
[399060595,1766091144666,10000.01,0.00016282,2]
[399060596,1766091144691,10000.01,0.00016282,2]
[399060597,1766091153424,-10000.01,0.00016282,2]
[399060598,1766091153485,-10000.01,0.00016282,2]
[399060599,1766091153591,-10000.01,0.00016282,2]
[399060600,1766091153695,-10000.01,0.00016282,2]
[399060601,1766091153824,-10000.01,0.00016282,2]
[399060602,1766091153922,-10000.01,0.00016282,2]
[399060603,1766091154474,-10000.01,0.00016282,2]
[399060604,1766091154639,-10000.01,0.00016282,2]
[399060605,1766091154779,-10000.01,0.00016282,2]
[399060606,1766091154893,-10000.01,0.00016282,2]
[399060608,1766091162509,-500.0,0.00016281,2]
[399060609,1766091162546,-500.0,0.00016281,2]
[399060610,1766091162581,-500.0,0.00016281,2]
[399060611,1766091162615,-500.0,0.00016281,2]
[399060612,1766091162651,-500.0,0.00016281,2]
[399060613,1766091162685,-500.0,0.00016281,2]
[399060614,1766091162719,-500.0,0.00016281,2]
[399060615,1766091162752,-500.0,0.00016281,2]
[399060616,1766091162787,-500.0,0.00016281,2]
[399060617,1766091162822,-500.0,0.00016281,2]
[399060618,1766091162928,-500.0,0.00016281,2]
[399060619,1766091162964,-500.0,0.00016281,2]
[399060620,1766091163000,-453.74168815,0.00016281,2]
[399060621,1766091163035,-500.0,0.00016281,2]
[399060622,1766091163071,-500.0,0.00016281,2]
[399060623,1766091163105,-500.0,0.00016281,2]
[399060624,1766091163140,-500.0,0.00016281,2]
[399060625,1766091163174,-500.0,0.00016281,2]
[399060626,1766091163208,-500.0,0.00016281,2]
[399060627,1766091163242,-500.0,0.00016281,2]
[399060628,1766091164308,-500.0,0.00016281,2]
[399060629,1766091164746,-500.0,0.00016281,2]
[399060630,1766091164781,-500.0,0.00016281,2]
[399060631,1766091164816,-500.0,0.00016281,2]
[399060632,1766091164848,-500.0,0.00016281,2]
[399060633,1766091165440,-92.5366237,0.00016282,2]
[399060634,1766091165459,-5000.01,0.00016282,2]
[399060635,1766091165479,-10000.01,0.00016282,2]
[399060636,1766091165498,-10000.01,0.00016282,2]
[399060637,1766091165512,-10000.01,0.00016282,2]
[399060638,1766091165540,-10000.01,0.00016282,2]
[399060639,1766091165562,-10000.01,0.00016282,2]
[399060640,1766091165583,-10000.01,0.00016282,2]
[399060641,1766091165606,-10000.01,0.00016282,2]
[399060642,1766091165651,-10000.01,0.00016282,2]
[399060643,1766091165680,-10000.01,0.00016282,2]
[399060644,1766091165859,-10000.01,0.00016282,2]
[399060645,1766091166000,-10000.01,0.00016282,2]
[399060646,1766091166173,-10000.01,0.00016282,2]
[399060647,1766091166330,-10000.01,0.00016282,2]
[399060648,1766091177599,-10000.01,0.00016282,2]
[399060649,1766091177766,-10000.01,0.00016282,2]
[399060650,1766091177836,-10000.01,0.00016282,2]
[399060651,1766091177944,-10000.01,0.00016282,2]
[399060652,1766091178044,-10000.01,0.00016282,2]
[399060653,1766091178177,-10000.01,0.00016282,2]
[399060654,1766091178389,-10000.01,0.00016282,2]
[399060655,1766091178510,-10000.01,0.00016282,2]
[399060656,1766091178617,-10000.01,0.00016282,2]
[399060657,1766091178745,-10000.01,0.00016282,2]
[399060666,1766091188010,3578.710438,7.945e-05,2]
[399060697,1766091208881,-300.0,0.00016281,2]
[399060698,1766091209027,-9400.01,0.00016282,2]
[399060699,1766091209051,-10000.01,0.00016282,2]
[399060700,1766091209065,-10000.01,0.00016282,2]
[399060701,1766091209083,-10000.01,0.00016282,2]
[399060702,1766091209100,-10000.01,0.00016282,2]
[399060703,1766091209129,-10000.01,0.00016282,2]
[399060704,1766091209148,-10000.01,0.00016282,2]
[399060705,1766091209234,-10000.01,0.00016282,2]
[399060706,1766091209405,-10000.01,0.00016282,2]
[399060707,1766091209568,-10000.01,0.00016282,2]
[399060708,1766091213947,-199.62568427,0.00016281,2]
[399060709,1766091213976,-576.45817314,0.00016281,2]
[399060710,1766091214005,-500.0,0.00016281,2]
[399060711,1766091214033,-500.0,0.00016281,2]
[399060712,1766091214062,-275.0,0.00016281,2]
[399060713,1766091214096,-500.0,0.00016281,2]
[399060714,1766091214126,-500.0,0.00016281,2]
[399060715,1766091214154,-500.0,0.00016281,2]
[399060716,1766091214188,-500.0,0.00016281,2]
[399060717,1766091214219,-500.0,0.00016281,2]
[399060718,1766091214385,-500.0,0.00016281,2]
[399060719,1766091214457,-397.84228518,0.00016281,2]
[399060720,1766091214493,-102.15771482,0.00016281,2]
[399060721,1766091214537,-397.84228518,0.00016282,2]
[399060722,1766091214563,-9000.01,0.00016282,2]
[399060723,1766091214591,-102.15771482,0.00016281,2]
[399060724,1766091214624,-397.84228518,0.00016281,2]
[399060725,1766091214657,-9397.85228518,0.00016282,2]
[399060726,1766091214687,-500.0,0.00016281,2]
[399060727,1766091214697,-9500.01,0.00016282,2]
[399060728,1766091214715,-397.84228518,0.00016282,2]
[399060729,1766091214753,-9204.32542964,0.00016282,2]
[399060730,1766091214787,-10000.01,0.00016282,2]
[399060731,1766091214810,-10000.01,0.00016282,2]
[399060732,1766091214860,-10000.01,0.00016282,2]
[399060733,1766091215105,-10000.01,0.00016282,2]
[399060734,1766091215214,-10000.01,0.00016282,2]
[399060735,1766091220199,-500.0,0.00016281,2]
[399060736,1766091220231,-500.0,0.00016281,2]
[399060737,1766091220261,-500.0,0.00016281,2]
[399060738,1766091220329,-7000.01,0.00016282,2]
[399060739,1766091220361,-10000.01,0.00016282,2]
[399060740,1766091220427,-10000.01,0.00016282,2]
[399060741,1766091220530,-10000.01,0.00016282,2]
[399060742,1766091221009,-10000.01,0.00016282,2]
[399060743,1766091221133,-10000.01,0.00016282,2]
[399060744,1766091221235,-10000.01,0.00016282,2]
[399060745,1766091221344,-10000.01,0.00016282,2]
[399060746,1766091221470,-10000.01,0.00016282,2]
[399060747,1766091221589,-10000.01,0.00016282,2]
[399060748,1766091226285,-10000.01,0.00016282,2]
[399060749,1766091226489,-10000.01,0.00016282,2]
[399060750,1766091226653,-10000.01,0.00016282,2]
[399060751,1766091226785,-10000.01,0.00016282,2]
[399060752,1766091226965,-10000.01,0.00016282,2]
[399060753,1766091227102,-10000.01,0.00016282,2]
[399060754,1766091227277,-10000.01,0.00016282,2]
[399060755,1766091227455,-10000.01,0.00016282,2]
[399060756,1766091227601,-10000.01,0.00016282,2]
[399060757,1766091227785,-10000.01,0.00016282,2]
[399060758,1766091232301,-500.0,0.00016281,2]
[399060759,1766091232332,-248.74453118,0.00016281,2]
[399060760,1766091232363,-202.4532918,0.00016281,2]
[399060761,1766091232396,-500.0,0.00016281,2]
[399060762,1766091232429,-205.99528466,0.00016281,2]
[399060763,1766091232533,-6685.62378472,0.00016282,2]
[399060764,1766091232562,-10000.01,0.00016282,2]
[399060765,1766091232590,-10000.01,0.00016282,2]
[399060766,1766091232661,-10000.01,0.00016282,2]
[399060767,1766091232787,-10000.01,0.00016282,2]
[399060768,1766091232906,-10000.01,0.00016282,2]
[399060769,1766091233031,-10000.01,0.00016282,2]
[399060770,1766091233173,-1923.1073064,0.00016282,2]
[399060771,1766091233204,-196.13256283,0.00016282,2]
[399060772,1766091233235,-219.46687473,0.00016282,2]
[399060773,1766091233265,-501.65512545,0.00016282,2]
[399060774,1766091235574,4041.5626501,0.00016282,2]
[399060782,1766091261441,277.72361108,0.00016281,2]
[399060783,1766091261467,132.22923552,0.00016281,2]
[399060784,1766091266276,370.5498,0.0001628,2]
[399060796,1766091306959,200.0,0.00016282,2]
[399060797,1766091423592,-300.0,0.00016381,2]
[399060798,1766091423623,-1200.0,0.00016381,2]
[399060799,1766091423652,-550.0,0.00016381,2]
[399060800,1766091423682,-500.0,0.00016382,2]
[399060801,1766091423712,-500.0,0.00016382,2]
[399060802,1766091423741,-500.0,0.00016382,2]
[399060803,1766091424213,-500.0,0.00016382,2]
[399060804,1766091424243,-500.0,0.00016382,2]
[399060805,1766091424276,-400.01,0.00016382,2]
[399060809,1766091424690,-99.99,0.00016382,2]
[399060810,1766091424718,-500.0,0.00016382,2]
[399060811,1766091424747,-500.0,0.00016382,2]
[399060812,1766091424777,-500.0,0.00016382,2]
[399060813,1766091424810,-500.0,0.00016382,2]
[399060814,1766091424841,-500.0,0.00016382,2]
[399060815,1766091424870,-500.0,0.00016382,2]
[399060816,1766091424898,-500.0,0.00016382,2]
[399060817,1766091424926,-385.211677,0.00016382,2]
[399060818,1766091424959,-500.0,0.00016382,2]
[399060819,1766091424989,-500.0,0.00016382,2]
[399060820,1766091425032,-500.0,0.00016382,2]
[399060821,1766091425060,-500.0,0.00016382,2]
[399060822,1766091425089,-500.0,0.00016382,2]
[399060823,1766091425120,-250.55529058,0.00016382,2]
[399060824,1766091425147,-500.0,0.00016382,2]
[399060825,1766091425175,-500.0,0.00016382,2]
[399060826,1766091425204,-500.0,0.00016382,2]
[399060827,1766091425233,-500.0,0.00016382,2]
[399060828,1766091425262,-500.0,0.00016382,2]
[399060829,1766091425292,-500.0,0.00016382,2]
[399060830,1766091425324,-155.58129497,0.00016436,2]
[399060831,1766091425367,-800.0,0.00016438,2]
[399060832,1766091425399,-200.0,0.00016445,2]
[399060833,1766091425427,-500.0,0.00016482,2]
[399060834,1766091425455,-500.0,0.00016482,2]
[399060835,1766091425485,-211.9059115,0.00016482,2]
[399060836,1766091425513,-500.0,0.00016482,2]
[399060837,1766091425543,-641.1096514,0.00016482,2]
[399060838,1766091425574,-500.0,0.00016498,2]
[399060839,1766091425619,-4195.19732843,0.00016639,2]
[399060840,1766091425648,-115.82175169,0.0001666,2]
[399060841,1766091425739,-1377.97183976,0.0001666,2]
[399060842,1766091425769,-2242.80098687,0.00016739,2]
[399060843,1766091425807,-500.0,0.00016739,2]
[399060844,1766091425857,-2242.80098687,0.00016739,2]
[399060845,1766091425887,-2242.80098687,0.00016739,2]
[399060846,1766091425944,-2242.80098687,0.00016739,2]
[399060847,1766091425979,-500.0,0.00016739,2]
[399060848,1766091426009,-2242.80098687,0.00016739,2]
[399060849,1766091426080,-2242.80098687,0.00016739,2]
[399060850,1766091426117,-500.0,0.00016739,2]
[399060851,1766091426148,-2242.80098687,0.00016739,2]
[399060852,1766091427879,-500.0,0.00016739,2]
[399060853,1766091427889,-1345.55851504,0.00016739,2]
[399060854,1766091427905,-28.80605252,0.00016739,2]
[399060855,1766091427967,-868.43641931,0.00016739,2]
[399060856,1766091427999,-2242.80098687,0.00016739,2]
[399060857,1766091428036,-500.0,0.00016739,2]
[399060858,1766091428071,-534.73420077,0.00016739,2]
[399060859,1766091428127,-1708.0667861,0.00016739,2]
[399060860,1766091428158,-2242.80098687,0.00016739,2]
[399060861,1766091428191,-545.37416881,0.00016739,2]
[399060862,1766091428262,-500.0,0.00016382,2]
[399060863,1766091428295,-2242.80098687,0.00016739,2]
[399060864,1766091428325,-2242.80098687,0.00016739,2]
[399060865,1766091428738,-545.37416881,0.00016739,2]